Cogmind - Beta 17 @@@ ROGUE MODE // 2026.08.17 @ 18:40:06 Player: Fedop Result: Self-destructed Performance ------------- Evolutions (1) 500 Regions Visited (3) 600 Robots Destroyed (4) 20 Value Destroyed (136) 136 Prototype IDs (1) 20 Alien Tech Used (0) 0 Bonus (0) 0 TOTAL SCORE: 1276 Bonus ------- None Cogmind --------- Core Integrity 335/400 Matter 275/300 Energy 159/250 System Corruption 13% Temperature Cool (0) Movement Core (100) Ox1 Location -9/Materials Parts ------- > --- POWER (1) -------- Ion Engine > --- PROPULSION (3) --- (None) > --- UTILITY (3) ------ (None) > --- WEAPON (2) ------- Welding Torch > --- INVENTORY (5) ---- EM Pulse Gun Medium Laser Peak State ------------ > --- POWER ------------ (None) > --- PROPULSION ------- Aluminum Leg > --- UTILITY ---------- Sensor Array Experimental Sensor Array > --- WEAPON ----------- Mining Laser > --- INVENTORY -------- Ion Engine EM Pulse Gun Medium Laser Welding Torch [Rating: 12] Favorites ----------- Power Light Ion Engine Engine Light Ion Engine Propulsion Aluminum Leg Leg Aluminum Leg Wheel Wheel Utility Sensor Array Device Sensor Array Storage Medium Storage Unit Weapon Small Laser Energy Gun Small Laser Special Weapon Mining Laser Build | -11 -10 -10 -9 ------- Run | Yrd Mat Min Mat Slots Evolved 2 | . . . 2 Power . | . . . . Propulsion 1 | . . . 1 Utility 1 | . . . 1 Weapon . | . . . . Parts Attached 15 | 6 3 3 3 Power 2 | 1 . . 1 Engine 2 | 1 . . 1 Core . | . . . . Reactor . | . . . . Propulsion 4 | 2 . 2 . Treads . | . . . . Leg 3 | 2 . 1 . Wheel 1 | . . 1 . Hover . | . . . . Flight . | . . . . Utility 4 | 1 2 1 . Device 2 | . 1 1 . Storage 2 | 1 1 . . Processor . | . . . . Hackware . | . . . . Protection . | . . . . Artifact . | . . . . Weapon 5 | 2 1 . 2 Energy Gun 3 | 2 1 . . Energy Cannon . | . . . . Ballistic Gun . | . . . . Ballistic Cannon . | . . . . Launcher . | . . . . Special Weapon 2 | . . . 2 Impact Weapon . | . . . . Slashing Weapon . | . . . . Piercing Weapon . | . . . . Special Melee Weapon . | . . . . Unidentified Prototypes 1 | . . 1 . Parts Lost 7 | . . 3 4 Power 1 | . . 1 . Propulsion 3 | . . 2 1 Utility 2 | . . . 2 Weapon 1 | . . . 1 Highest Loss Streak 3 | . . 3 2 To Critical Strikes . | . . . . Average Backups 3 | . 3 7 4 Power . | . 1 1 . Propulsion . | . . 2 . Utility . | . . . . Weapon 1 | . 1 2 2 Tool/Special . | . . . . Unused Backups 4 | . . 3 1 Power . | . . . . Propulsion 2 | . . 2 . Utility 1 | . . 1 . Weapon 1 | . . . 1 Tool/Special . | . . . . Average Slot Usage (%) 75 | . 97 85 33 Engine 10 | . 14 10 3 Leg 21 | . 28 26 8 Device 12 | . 11 14 14 Storage 9 | . 14 12 . Energy Gun 18 | . 28 21 . Special Weapon 2 | . . . 6 Peak Build Rating 12 | 6 7 11 12 Average Rating 7 | 4 6 6 8 On Entrance 6 | . 6 7 11 Avg Prop Armor Cover (%) 22 | . . 26 21 Naked Turns . | . . . . Heaviest Build 17 | 10 17 17 7 Greatest Support 20 | 20 20 20 3 Greatest Overweight (x) 2 | . . . 2 Average Overweight (x) . | . . . . Largest Inventory Capacity 10 | 8 10 10 5 Average Capacity 8 | 7 9 9 5 Most Carried 9 | 2 8 9 5 Average Carried 3 | . 3 7 3 Final Capacity 10 | 8 10 5 5 Final Carried 8 | 2 8 5 2 Class Distribution -------------------- 100% | Mutant Dominant Class ---------------- Mutant | -10/Materials Mutant | -10/Mines Mutant | -9/Materials Resources | -11 -10 -10 -9 ----------- Run | Yrd Mat Min Mat Matter Collected 295 | 199 91 5 . Remotely . | . . . . Salvage Created 159 | . 159 . . Parts 8 | . 8 . . Haulers Intercepted . | . . . . Recyclers Shooed 1 | . 1 . . Parts Field Recycled . | . . . . Retrieved Matter . | . . . . Parts Self-Destructed . | . . . . Prevented . | . . . . Parts Restored . | . . . . Kills | -11 -10 -10 -9 ------- Run | Yrd Mat Min Mat Combat Hostiles Destroyed 4 | . 4 . . Guns 4 | . 4 . . Classes Destroyed 1 | . 1 . . Grunt 4 | . 4 . . Best Kill Streak 3 | . 3 . . Combat Bots Only 3 | . 3 . . Max Kills in Single Turn 1 | . 1 . . Gunslinging . | . . . . Exploded . | . . . . Melee . | . . . . Uniques/NPCs Destroyed . | . . . . Combat | -11 -10 -10 -9 -------- Run | Yrd Mat Min Mat Hostile Shots Fired 86 | . 43 43 . Missed 41 | . 19 22 . Hits 45 | . 24 21 . Melee 2 | . . 2 . Projectile 43 | . 24 19 . Critical Strikes 2 | . . 2 . Damage Taken 832 | . 246 298 288 Core 191 | . 37 89 65 Absorbed by Shields . | . . . . Core Remaining (%) 74 | 100 . 49 . Volleys Fired 35 | . 16 . 19 Largest 2 | . 2 . 1 Hottest 100 | . 90 . 100 Shots Fired 51 | . 32 . 19 Gun 32 | . 32 . . Cannon . | . . . . Launcher . | . . . . Special 19 | . . . 19 Kinetic . | . . . . Thermal 51 | . 32 . 19 Explosive . | . . . . Electromagnetic . | . . . . Robot Hit Streak 15 | . 15 . . Robot Miss Streak 3 | . 3 . . Penetration Max . | . . . . Secondary Targets 2 | . 2 . . Max Gunslinging Chain 1 | . 1 . . Shots Hit Robots 23 | . 23 . . Core Hits 9 | . 9 . . Critical Kills . | . . . . Critical Parts Destroyed . | . . . . Critical Strikes 1 | . 1 . . Burn 1 | . 1 . . Melee Attacks . | . . . . Impact . | . . . . Slashing . | . . . . Piercing . | . . . . Sneak Attacks . | . . . . Combat Hostiles . | . . . . Follow-up Attacks . | . . . . Damage Inflicted 256 | . 256 . . Guns 256 | . 256 . . Cannons . | . . . . Explosions . | . . . . Melee . | . . . . Ramming . | . . . . Kinetic . | . . . . Thermal 256 | . 256 . . Explosive . | . . . . Electromagnetic . | . . . . Impact . | . . . . Slashing . | . . . . Piercing . | . . . . Highest Corruption 13 | . . 4 13 Average Corruption 8 | . . 4 8 Corruption Purged . | . . . . Corruption Blocked . | . . . . Effects 4 | . . . 4 Message Errors 3 | . . . 3 Energy Discharges 1 | . . . 1 Overload Shots . | . . . . Overflow Damage . | . . . . Projectiles . | . . . . Explosions . | . . . . Melee . | . . . . Knockbacks . | . . . . Impact . | . . . . Kinetic . | . . . . Secondary . | . . . . Self-Inflicted Damage . | . . . . Shots . | . . . . Rammed . | . . . . Targets Rammed . | . . . . Kicked . | . . . . Crushed . | . . . . Highest Temperature 324 | . 324 . 16 Average Temperature 79 | . 129 . 5 Received Heat Transfer 102 | . 102 . . Siege Activations . | . . . . Martial Activations . | . . . . Shielding Activations . | . . . . Robots Disrupted . | . . . . Combat Hostiles . | . . . . Robots Corrupted . | . . . . Combat Hostiles . | . . . . Parts Fried . | . . . . Impact Corruptions . | . . . . Robots Melted . | . . . . Combat Hostiles . | . . . . Parts Melted 2 | . 2 . . Heat Transferred 756 | . 756 . . Parts Sabotaged . | . . . . Parts Stolen . | . . . . Parts Stripped . | . . . . Power Chain Reactions . | . . . . Alert | -11 -10 -10 -9 ------- Run | Yrd Mat Min Mat Maximum Alert Level . | . . . . Low Security (%) 100 | 100 100 100 100 Level 1 . | . . . . Level 2 . | . . . . Level 3 . | . . . . Level 4 . | . . . . Level 5 . | . . . . High Security . | . . . . Max Security . | . . . . Peak Influence 70 | . 70 11 15 Initial 11 | . . 11 . Average 11 | . 20 3 1 Influence Increases 147 | . 130 . 17 Destroy 0b10 Robot/C 80 | . 80 . . Destroy Leader 20 | . 20 . . Destroy Structure 2 | . . . 2 Partial Spotted 15 | . . . 15 Lose Combat Pursuer 30 | . 30 . . Influence Decreases 147 | . 100 30 17 Entered New Map 19 | . . 19 . Time Decay 127 | . 100 10 17 Lost Part 1 | . . 1 . Squads Dispatched 4 | . 4 . . Investigation 2 | . 2 . . Extermination . | . . . . Reinforcement 2 | . 2 . . Assault . | . . . . Garrison . | . . . . Intercept . | . . . . Searches Triggered . | . . . . Construction Impeded . | . . . . Haulers Reinforced . | . . . . Active Scanning Responses . | . . . . Cargo Convoy Interrupts . | . . . . Stealth | -11 -10 -10 -9 --------- Run | Yrd Mat Min Mat Distress Signals 2 | . 2 . . Communications Jammed . | . . . . Distress Signals . | . . . . Times Spotted 27 | . 18 9 . Peak Tracking Total 17 | . 9 17 . Tactical Retreats 4 | . 1 3 . Traps | -11 -10 -10 -9 ------- Run | Yrd Mat Min Mat Traps Triggered 1 | . 1 . . Indirectly . | . . . . Trap Hack Attempts . | . . . . Triggered . | . . . . Disarmed . | . . . . Reprogrammed . | . . . . Reused . | . . . . Traps Extracted . | . . . . Installed . | . . . . Triggered . | . . . . Machines | -11 -10 -10 -9 ---------- Run | Yrd Mat Min Mat Machines Disabled . | . . . . Max in Single Turn . | . . . . Machines Repaired . | . . . . Machines Dismantled . | . . . . Machines Sabotaged . | . . . . Overloaded Fab Kills . | . . . . Hacking | -11 -10 -10 -9 --------- Run | Yrd Mat Min Mat Machines Accessed 2 | . 2 . . Terminals 2 | . 2 . . Fabricators . | . . . . Repair Stations . | . . . . Recycling Units . | . . . . Scanalyzers . | . . . . Garrison Access . | . . . . Total Hacks 4 | . 4 . . Successful . | . . . . Failed 4 | . 4 . . Catastrophic 1 | . 1 . . Database Lockouts . | . . . . Manual 4 | . 4 . . Terminals 4 | . 4 . . Fabricators . | . . . . Repair Stations . | . . . . Recycling Units . | . . . . Scanalyzers . | . . . . Garrison Access . | . . . . Terminal Hacks . | . . . . Fabricator Hacks . | . . . . Repair Station Hacks . | . . . . Recycling Unit Hacks . | . . . . Scanalyzer . | . . . . Garrison Access Hacks . | . . . . Unauthorized Hacks . | . . . . Terminals . | . . . . Fabricators . | . . . . Repair Stations . | . . . . Recycling Units . | . . . . Scanalyzers . | . . . . Garrison Access . | . . . . Data Cores Recovered . | . . . . Used . | . . . . Hacking Detections 2 | . 2 . . Full Trace Events 2 | . 2 . . Feedback Events . | . . . . Feedback Blocked . | . . . . Robot Schematics Acquired . | . . . . Robots Built . | . . . . Authchips . | . . . . Time . | . . . . Total Robot Build Rating . | . . . . Part Schematics Acquired . | . . . . Parts Built . | . . . . Authchips . | . . . . Time . | . . . . Total Part Build Rating . | . . . . Part Studies Acquired . | . . . . Parts Repaired . | . . . . Time . | . . . . Parts Recycled . | . . . . Recycled Matter . | . . . . Retrieved Matter . | . . . . Retrieved Components . | . . . . Parts Scanalyzed . | . . . . Part Schematics Acquired . | . . . . Parts Damaged . | . . . . Bothacking | -11 -10 -10 -9 ------------ Run | Yrd Mat Min Mat Used RIF Installer . | . . . . Robots Hacked . | . . . . Non-combat . | . . . . Combat . | . . . . Robot Hacks Applied . | . . . . Relay Couplers Released . | . . . . Fabnet Peak Effective % . | . . . . Robots Rewired . | . . . . Allies Hacked . | . . . . Hacks Repelled . | . . . . Allies | -11 -10 -10 -9 -------- Run | Yrd Mat Min Mat Total Allies . | . . . . Largest Group . | . . . . Highest-Rated Group . | . . . . Highest-Rated Ally . | . . . . Total Orders . | . . . . Ally Attacks . | . . . . Total Damage . | . . . . Kills . | . . . . Allies Corrupted . | . . . . Allies Melted . | . . . . Intel | -11 -10 -10 -9 ------- Run | Yrd Mat Min Mat Active Infowar (turns) 562 | . 330 74 158 Sensors 562 | . 330 74 158 Robot Analysis Total . | . . . . Derelict Logs Recovered . | . . . . Drone Launches . | . . . . Drone Recoveries . | . . . . Exploration | -11 -10 -10 -9 ------------- Run | Yrd Mat Min Mat Turns Passed 730 | 57 385 74 214 Spaces Moved 443 | 41 270 65 67 Core 85 | 3 . 15 67 Treads . | . . . . Legs 358 | 38 270 50 . Wheels . | . . . . Hover . | . . . . Flight . | . . . . Fastest Speed 50 | 50 120 50 50 Average Speed 108 | 114 120 103 61 Slowest Speed 150 | 120 120 120 150 Overloaded Moves . | . . . . Propulsion Burnouts . | . . . . Robots Hopped . | . . . . Potential Cave-ins 13 | . . . 13 Cave-ins Triggered 5 | . . . 5 Exploration Rate (%) 19 | 3 40 32 3 Regions Visited 3 Branch Regions 1 Pre-discovered Areas . | . . . . Known Exits Taken . | . . . . Unknown Exits Taken 3 | 1 1 1 . Scrap Searched 1 | . . 1 . Spaces Dug 17 | . . . 17 Terrain Destroyed 17 | . . . 17 Melee . | . . . . Projectile 17 | . . . 17 AOE . | . . . . Terrain Rammed . | . . . . Walls Destroyed . | . . . . Machines Disabled . | . . . . Actions | -11 -10 -10 -9 --------- Run | Yrd Mat Min Mat Total 603 | 48 298 71 186 Wait 99 | . 2 . 97 Move 438 | 40 269 64 65 Hop . | . . . . Pick Up 8 | 2 6 . . Fast Attach 11 | 6 3 2 . Attach 4 | . . 1 3 Detach 2 | . . 2 . Swap . | . . . . Drop 4 | . 2 2 . Fire 35 | . 16 . 19 Melee . | . . . . Ram . | . . . . Kick . | . . . . Crush . | . . . . Escape Stasis 2 | . . . 2 Rewire . | . . . . Trap . | . . . . Miscellaneous . | . . . . Route ------- -11/Scrapyard -10/Materials (discovered 2 exits: [*Mat] / [*Min]) -10/Mines -9/Materials History --------- Turn | Location | Event 37 | -11/Scrapyard | Discovered new exit (range 15) 58 | -11/Scrapyard | Entered Materials 222 | -10/Materials | Discovered new exit (range 15) 305 | -10/Materials | Build established: Mutant 393 | -10/Materials | Discovered new exit (range 16) 443 | -10/Materials | Entered Mines 444 | -10/Mines | Assembled infested the area 511 | -10/Mines | Core integrity fell below 50% 511 | -10/Mines | Found a damaged Exp. Sensor Array with a note attached 512 | -10/Mines | Found Prototype Device 512 | -10/Mines | Identified Exp. Sensor Array 514 | -10/Mines | Discovered new exit (range 6) 517 | -10/Mines | Entered Materials 517 | -9/Materials | Evolved 2 slots: Propulsion x1, Utility x1 539 | -9/Materials | Lost 3 parts (1p2n) 643 | -9/Materials | Crushed by falling debris 656 | -9/Materials | Crushed by falling debris 675 | -9/Materials | Crushed by falling debris 676 | -9/Materials | System corruption reached 10% 724 | -9/Materials | Crushed by falling debris 726 | -9/Materials | Crushed by falling debris 731 | -9/Materials | Self-destructed Last Messages --------------- 00649_ System corrupted: Energy discharge (-5). 00656_ The unstable cave ceiling collapses. 00656_ Crushed by falling debris. 00674_ SNJD6AMJIZP|ETS IKDFYSDMGBXII 00675_ The unstable cave ceiling collapses. 00675_ Crushed by falling debris. 00675_ Aluminum Leg destroyed. 00675_ System corrupted by crushing effect (+4). 00675_ Exp. Sensor Array destroyed. 00675_ System corrupted by crushing effect (+1). 00684_ The unstable cave ceiling collapses. 00690_ 63Q1R8QMDFB4HECMEE5V7,< HFN 00700_ The unstable cave ceiling collapses. 00710_ BJJI5D3 QVTL|XYSJWB|=| B, 00724_ The unstable cave ceiling collapses. 00724_ Crushed by falling debris. 00724_ Mining Laser destroyed. 00724_ System corrupted by crushing effect (+3). 00726_ The unstable cave ceiling collapses. 00726_ Crushed by falling debris. Map ----- +----------------------------------------------------+ | | | | | | | ???????????????????????????????????????????????? | | ???????????????????????????????????????????????? | | ???????????????????????????????????????????????? | | ???????????????????????????????????????????????? | | ???????????????###################### ????????? | | ???????????????# ???????? | | ???????????????# ???????? | | ???????????????# [???????? | | ???????????????####+#############??????????????? | | ????????????????# #???????????????????????? | | ????????????????# """ #???????????????????????? | | ????????????????# """ #???????????????????????? | | ????????????????# """ #???????????????????????? | | ????????????????# """ ##??????????????????????? | | ????????????????# ##??????????????????????? | | ????????????????#########??????????????????????? | | ?????????????????????###???????????????????????? | | ????????????????????## #???????????????????????? | | ???????????????????## ##???????????????????????? | | ???????????????????## #????????????????????????? | | ??????????????????#########????????????????????? | | ??????????????????## # ####????????????????????? | | ??????????????????## #@###????????????????????? | | ???????????????????#######?????????????????????? | | ???????????????????????????????????????????????? | | ???????????????????????????????????????????????? | | ???????????????????????????????????????????????? | | ???????????????????????????????????????????????? | | ???????????????????????????????????????????????? | | ???????????????????????????????????????????????? | | ???????????????????????????????????????????????? | | ???????????????????????????????????????????????? | | ???????????????????????????????????????????????? | | ???????????????????????????????????????????????? | | ???????????????????????????????????????????????? | | ???????????????????????????????????????????????? | | ???????????????????????????????????????????????? | | ???????????????????????????????????????????????? | | ???????????????????????????????????????????????? | | ???????????????????????????????????????????????? | | ???????????????????????????????????????????????? | | ???????????????????????????????????????????????? | | ???????????????????????????????????????????????? | | ???????????????????????????????????????????????? | | ???????????????????????????????????????????????? | | ???????????????????????????????????????????????? | | ???????????????????????????????????????????????? | +----------------------------------------------------+ Best States ------------- Heat Dissipation 28 Energy Generation 10 Energy Capacity 250 Matter Stores 300 Matter Capacity 300 Sight Range 16 Robot Scan Range 20 Terrain Scan Density 10 Evasion (%) 55 Item Schematics ----------------- None Robot Schematics ------------------ None Fabricated ------------ Nothing Repaired ---------- Nothing Studied --------- None Alien Tech Used ----------------- None Achievements -------------- None Challenges ------------ None Game ------ Seed VariableGammaPrototype Manual? 0 Play Time 00:10:37 Cumulative 64.3 hours Start 2026.08.17 @ 18:31:50 End 2026.08.17 @ 18:40:06 Sessions 1 Manual Loads 0 Difficulty Rogue Special Mode None Game No. 48 Rogue 48 Adventurer 0 Explorer 0 Win Type - Total 0 Types 0/0/0/0/0/0/0/0/0/0 Lore% 28 Gallery% 33 Achievement% 27 Wizard Run 0 Options --------- Layout 0 ASCII 0 Keyboard 1 Movement Vi Keybinds 0 Fullscreen 2 Font 18/SmallcapsGlow Map View 76x50 Zoom Use 0% Tactical HUD 1 Map Filters NONE Filters NONE Steam 1 RUN: 376bc187-7aa4-49b3-89eb-03142de79d31